fUST/lending_fUST_20241229
["ID","MTS","AMOUNT","RATE_DAILY","PERIOD"]
[346960001,1735429841488,-500.0,0.00017661,2]
[346960002,1735429841497,-216.036,0.00017661,2]
[346960003,1735429841508,-500.0,0.00017661,2]
[346960004,1735429841519,-500.0,0.00017661,2]
[346960005,1735429841528,-500.0,0.00017661,2]
[346960006,1735429841538,-500.0,0.00017661,2]
[346960007,1735429841548,-500.0,0.00017661,2]
[346960008,1735429841558,-500.0,0.00017661,2]
[346960009,1735429841568,-500.0,0.00017661,2]
[346960010,1735429841578,-500.0,0.00017661,2]
[346960011,1735429841589,-500.0,0.00017661,2]
[346960012,1735429841599,-500.0,0.00017661,2]
[346960013,1735429841612,-500.0,0.00017661,2]
[346960014,1735429841624,-500.0,0.00017661,2]
[346960015,1735429841634,-508.77,0.00017661,2]
[346960016,1735429841645,-500.0,0.00017661,2]
[346960017,1735429841654,-500.0,0.00017661,2]
[346960018,1735429841664,-500.0,0.00017661,2]
[346960019,1735429841673,-500.0,0.00017661,2]
[346960020,1735429841682,-500.0,0.00017661,2]
[346960021,1735429841692,-383.99564397,0.00017661,2]
[346960022,1735429841702,-500.0,0.00017661,2]
[346960023,1735429841711,-503.10281426,0.00017661,2]
[346960024,1735429841721,-500.0,0.00017661,2]
[346960025,1735429841731,-500.0,0.00017661,2]
[346960026,1735429841740,-500.0,0.00017661,2]
[346960027,1735429841750,-500.0,0.00017661,2]
[346960028,1735429841760,-500.0,0.00017661,2]
[346960029,1735429841770,-500.0,0.00017661,2]
[346960030,1735429841779,-500.0,0.00017661,2]
[346960031,1735429841789,-500.0,0.00017661,2]
[346960032,1735429841798,-500.0,0.00017661,2]
[346960033,1735429841807,-679.76,0.00017661,2]
[346960034,1735429841816,-211.64130333,0.00017661,2]
[346960035,1735429841826,-500.0,0.00017661,2]
[346960036,1735429841835,-87.62515773,0.00017661,2]
[346960037,1735429841847,-268.20779954,0.00017661,2]
[346960038,1735429841858,-144.16704273,0.00017661,2]
[346960039,1735429841867,-500.0,0.00017661,2]
[346960040,1735429841875,-500.0,0.00017661,2]
[346960041,1735429841884,-500.0,0.00017661,2]
[346960042,1735429841893,-500.0,0.00017661,2]
[346960043,1735429841902,-500.0,0.00017661,2]
[346960044,1735429841911,-500.0,0.00017661,2]
[346960045,1735429841920,-500.0,0.00017661,2]
[346960046,1735429841929,-500.0,0.00017661,2]
[346960047,1735429841938,-500.0,0.00017661,2]
[346960048,1735429841947,-500.0,0.00017661,2]
[346960049,1735429841956,-500.0,0.00017661,2]
[346960050,1735429841965,-500.0,0.00017661,2]
[346960051,1735429841974,-500.0,0.00017661,2]
[346960052,1735429841984,-500.0,0.00017661,2]
[346960053,1735429841993,-500.0,0.00017661,2]
[346960054,1735429842002,-500.0,0.00017661,2]
[346960055,1735429842011,-500.0,0.00017661,2]
[346960056,1735429842021,-500.0,0.00017661,2]
[346960057,1735429842030,-500.0,0.00017661,2]
[346960058,1735429842040,-500.0,0.00017661,2]
[346960059,1735429842049,-500.0,0.00017661,2]
[346960060,1735429842059,-500.0,0.00017661,2]
[346960061,1735429842068,-500.0,0.00017661,2]
[346960062,1735429842078,-500.0,0.00017661,2]
[346960063,1735429842087,-500.0,0.00017661,2]
[346960064,1735429842096,-500.0,0.00017661,2]
[346960065,1735429842105,-500.0,0.00017661,2]
[346960066,1735429842114,-380.58966107,0.00017661,2]
[346960067,1735429842123,-500.0,0.00017661,2]
[346960068,1735429842132,-500.0,0.00017661,2]
[346960069,1735429842142,-500.0,0.00017661,2]
[346960070,1735429842151,-500.0,0.00017661,2]
[346960071,1735429842160,-500.0,0.00017661,2]
[346960072,1735429842170,-500.0,0.00017661,2]
[346960073,1735429842179,-500.0,0.00017661,2]
[346960074,1735429842187,-500.0,0.00017661,2]
[346960075,1735429842197,-500.0,0.00017661,2]
[346960076,1735429842206,-500.0,0.00017661,2]
[346960077,1735429842215,-500.0,0.00017661,2]
[346960078,1735429842224,-500.0,0.00017661,2]
[346960079,1735429842234,-500.0,0.00017661,2]
[346960080,1735429842242,-500.0,0.00017662,2]
[346960081,1735429842251,-500.0,0.00017662,2]
[346960082,1735429842260,-500.0,0.00017662,2]
[346960083,1735429842270,-500.0,0.00017662,2]
[346960084,1735429842279,-500.0,0.00017662,2]
[346960085,1735429842288,-500.0,0.00017662,2]
[346960086,1735429842300,-500.0,0.00017662,2]
[346960087,1735429842311,-1650.12,0.00017663,2]
[346960088,1735429842320,-500.0,0.00017663,2]
[346960089,1735429842330,-500.0,0.00017663,2]
[346960090,1735429842338,-500.0,0.00017663,2]
[346960091,1735429842347,-500.0,0.00017663,2]
[346960092,1735429842358,-500.0,0.00017663,2]
[346960093,1735429842370,-507.59975756,0.00017663,2]
[346960094,1735429842380,-500.0,0.00017663,2]
[346960095,1735429842389,-1475.13,0.00017664,2]
[346960096,1735429842399,-861.57455082,0.00017834,2]
[346960097,1735429842408,-500.0,0.00017933,2]
[346960098,1735429842417,-500.0,0.00017933,2]
[346960099,1735429842426,-530.44,0.00017933,2]
[346960100,1735429842436,-500.0,0.00017933,2]
[346960101,1735429842445,-718.97,0.00017933,2]
[346960102,1735429842454,-273.67965802,0.00017933,2]
[346960103,1735429842464,-500.0,0.00017933,2]
[346960104,1735429842473,-500.0,0.00017933,2]
[346960105,1735429842482,-500.0,0.00017933,2]
[346960106,1735429842491,-500.0,0.00017933,2]
[346960107,1735429842500,-500.0,0.00017933,2]
[346960108,1735429842509,-500.0,0.00017933,2]
[346960109,1735429842519,-500.0,0.00017933,2]
[346960110,1735429842530,-500.0,0.00017934,2]
[346960111,1735429842539,-500.0,0.00017934,2]
[346960112,1735429842548,-500.0,0.00017934,2]
[346960113,1735429842559,-500.0,0.00017934,2]
[346960114,1735429842569,-500.0,0.00017934,2]
[346960115,1735429842578,-500.0,0.00017934,2]
[346960116,1735429842589,-500.0,0.00017934,2]
[346960117,1735429842599,-500.0,0.00017934,2]
[346960118,1735429842610,-500.0,0.00017934,2]
[346960119,1735429842622,-500.0,0.00017934,2]
[346960120,1735429842632,-500.0,0.00017934,2]
[346960121,1735429842642,-500.0,0.00017934,2]
[346960122,1735429842651,-619.9,0.00017934,2]
[346960123,1735429842661,-500.0,0.00017934,2]
[346960124,1735429842670,-500.0,0.00017934,2]
[346960125,1735429842679,-500.0,0.00017934,2]
[346960126,1735429842691,-500.0,0.00017934,2]
[346960127,1735429842701,-500.0,0.00017934,2]
[346960128,1735429842710,-500.0,0.00017934,2]
[346960129,1735429842722,-500.0,0.00017934,2]
[346960130,1735429842732,-499.81272727,0.00017934,2]
[346960131,1735429842745,-0.18727273,0.00017934,2]
[346960132,1735429842754,-500.0,0.00017934,2]
[346960133,1735429842763,-884.32,0.00017934,2]
[346960134,1735429842772,-500.0,0.00017934,2]
[346960135,1735429842782,-500.0,0.00017934,2]
[346960136,1735429842791,-500.0,0.00017934,2]
[346960137,1735429842800,-500.0,0.00017934,2]
[346960138,1735429842809,-500.0,0.00017934,2]
[346960139,1735429842818,-268.86,0.00017934,2]
[346960140,1735429842827,-504.6,0.00017934,2]
[346960141,1735429842836,-500.0,0.00017934,2]
[346960142,1735429842845,-2318.55,0.00017934,2]
[346960143,1735429842854,-500.0,0.00017934,2]
[346960144,1735429842863,-500.0,0.00017934,2]
[346960145,1735429842872,-500.0,0.00017934,2]
[346960146,1735429842881,-500.0,0.00017934,2]
[346960147,1735429842890,-500.0,0.00017934,2]
[346960148,1735429842899,-10079.65,0.00017934,2]
[346960149,1735429842908,-500.0,0.00017934,2]
[346960150,1735429842917,-500.0,0.00017934,2]
[346960151,1735429842927,-500.0,0.00017934,2]
[346960152,1735429842936,-500.0,0.00017934,2]
[346960153,1735429842945,-500.0,0.00017934,2]
[346960154,1735429842954,-500.0,0.00017934,2]
[346960155,1735429842963,-820.39,0.00017934,2]
[346960156,1735429842972,-500.0,0.00017934,2]
[346960157,1735429842982,-202.80349095,0.00017934,2]
[346960158,1735429842991,-500.0,0.00017934,2]
[346960159,1735429843000,-500.0,0.00017934,2]
[346960160,1735429843009,-500.0,0.00017934,2]
[346960161,1735429843019,-500.0,0.00017934,2]
[346960162,1735429843029,-500.0,0.00017934,2]
[346960163,1735429843038,-500.0,0.00017934,2]
[346960164,1735429843047,-500.0,0.00017934,2]
[346960165,1735429843056,-500.0,0.00017934,2]
[346960166,1735429843065,-500.0,0.00017934,2]
[346960167,1735429843075,-500.0,0.00017934,2]
[346960168,1735429843084,-500.0,0.00017934,2]
[346960169,1735429843093,-500.0,0.00017934,2]
[346960170,1735429843102,-500.0,0.00017934,2]
[346960171,1735429843112,-500.0,0.00017935,2]
[346960172,1735429843121,-500.0,0.00017935,2]
[346960173,1735429843130,-500.0,0.00017935,2]
[346960174,1735429843139,-500.0,0.00017935,2]
[346960175,1735429843148,-500.0,0.00017935,2]
[346960176,1735429843158,-500.0,0.00017935,2]
[346960177,1735429843167,-500.0,0.00017935,2]
[346960178,1735429843176,-500.0,0.00017935,2]
[346960179,1735429843185,-500.0,0.00017935,2]
[346960180,1735429843195,-500.0,0.00017935,2]
[346960182,1735429843204,-500.0,0.00017935,2]
[346960184,1735429843213,-500.0,0.00017935,2]
[346960185,1735429843223,-500.0,0.00017935,2]
[346960186,1735429843232,-500.0,0.00017935,2]
[346960187,1735429843241,-500.0,0.00017935,2]
[346960188,1735429843251,-679.76,0.00017935,2]
[346960189,1735429843260,-212.86,0.00017935,2]
[346960190,1735429843269,-500.0,0.00017935,2]
[346960192,1735429843279,-500.0,0.00017935,2]
[346960194,1735429843289,-694.07,0.00017935,2]
[346960197,1735429843299,-500.0,0.00017935,2]
[346960199,1735429843308,-500.0,0.00017936,2]
[346960201,1735429843317,-500.0,0.00017936,2]
[346960203,1735429843326,-500.0,0.00017936,2]
[346960205,1735429843334,-500.0,0.00017936,2]
[346960207,1735429843343,-1650.12,0.00017937,2]
[346960209,1735429843354,-500.0,0.00017937,2]
[346960211,1735429843363,-1475.13,0.00017938,2]
[346960213,1735429843372,-500.0,0.00018207,2]
[346960216,1735429843382,-500.0,0.00018207,2]
[346960218,1735429843391,-718.97,0.00018207,2]
[346960232,1735429843401,-500.0,0.00018207,2]
[346960234,1735429843482,-500.0,0.00018207,2]
[346960236,1735429843491,-500.0,0.00018207,2]
[346960238,1735429843500,-500.0,0.00018207,2]
[346960240,1735429843509,-558.0703212,0.00018207,2]
[346960241,1735429843518,-500.0,0.00018207,2]
[346960242,1735429843527,-582.82112238,0.00018207,2]
[346960243,1735429843536,-589.48,0.00018208,2]
[346960244,1735429843545,-500.0,0.00018208,2]
[346960245,1735429843555,-500.0,0.00018208,2]
[346960246,1735429843564,-500.0,0.00018208,2]
[346960247,1735429843573,-500.0,0.00018208,2]
[346960248,1735429843583,-539.54,0.00018208,2]
[346960249,1735429843592,-500.0,0.00018208,2]
[346960250,1735429843601,-500.0,0.00018208,2]
[346960251,1735429843613,-500.0,0.00018208,2]
[346960252,1735429843622,-589.31,0.00018208,2]
[346960253,1735429843631,-500.0,0.00018208,2]
[346960254,1735429843640,-500.0,0.00018208,2]
[346960255,1735429843649,-500.0,0.00018208,2]
[346960256,1735429843658,-500.0,0.00018208,2]
[346960257,1735429843667,-500.0,0.00018208,2]
[346960258,1735429843676,-500.0,0.00018208,2]
[346960259,1735429843685,-500.0,0.00018208,2]
[346960260,1735429843694,-500.0,0.00018208,2]
[346960261,1735429843703,-625.7,0.00018208,2]
[346960262,1735429843712,-884.32,0.00018208,2]
[346960263,1735429843722,-500.0,0.00018208,2]
[346960264,1735429843731,-500.0,0.00018208,2]
[346960265,1735429843740,-500.0,0.00018208,2]
[346960266,1735429843749,-500.0,0.00018208,2]
[346960267,1735429843759,-500.0,0.00018208,2]
[346960268,1735429843768,-500.0,0.00018208,2]
[346960269,1735429843778,-2318.55,0.00018208,2]
[346960270,1735429843787,-500.0,0.00018208,2]
[346960271,1735429843797,-500.0,0.00018208,2]
[346960272,1735429843806,-500.0,0.00018208,2]
[346960273,1735429843815,-500.0,0.00018208,2]
[346960274,1735429843824,-500.0,0.00018208,2]
[346960275,1735429843833,-10079.65,0.00018208,2]
[346960276,1735429843842,-500.0,0.00018208,2]
[346960277,1735429843851,-500.0,0.00018208,2]
[346960278,1735429843862,-500.0,0.00018208,2]
[346960279,1735429843871,-500.0,0.00018208,2]
[346960280,1735429843880,-151.0,0.00018208,2]
[346960281,1735429843889,-500.0,0.00018208,2]
[346960282,1735429843899,-151.0,0.00018208,2]
[346960283,1735429843908,-500.0,0.00018208,2]
[346960284,1735429843918,-820.39,0.00018208,2]
[346960285,1735429843927,-151.0,0.00018208,2]
[346960286,1735429843936,-500.0,0.00018208,2]
[346960287,1735429843946,-500.0,0.00018208,2]
[346960288,1735429843955,-500.0,0.00018208,2]
[346960289,1735429843964,-500.0,0.00018208,2]
[346960290,1735429843973,-500.0,0.00018208,2]
[346960291,1735429843984,-500.0,0.00018208,2]
[346960292,1735429843995,-500.0,0.00018208,2]
[346960293,1735429844005,-500.0,0.00018208,2]
[346960294,1735429844014,-521.64,0.00018208,2]
[346960295,1735429844024,-500.0,0.00018208,2]
[346960296,1735429844032,-151.0,0.00018208,2]
[346960297,1735429844042,-151.0,0.00018208,2]
[346960298,1735429844051,-500.0,0.00018208,2]
[346960299,1735429844060,-500.0,0.00018208,2]
[346960300,1735429844069,-232.121085,0.00018208,2]
[346960301,1735429844078,-232.121085,0.00018208,2]
[346960302,1735429844087,-500.0,0.00018208,2]
[346960303,1735429844097,-320.04,0.00018209,2]
[346960304,1735429844106,-500.0,0.00018209,2]
[346960305,1735429844115,-500.0,0.00018209,2]
[346960307,1735429844124,-679.76,0.00018209,2]
[346960308,1735429844134,-500.0,0.00018209,2]
[346960309,1735429844142,-500.0,0.00018209,2]
[346960310,1735429844151,-694.07,0.00018209,2]
[346960311,1735429844160,-329.46,0.00018209,2]
[346960312,1735429844170,-500.0,0.0001821,2]
[346960313,1735429844178,-500.0,0.0001821,2]
[346960314,1735429844187,-500.0,0.0001821,2]
[346960315,1735429844196,-151.0,0.0001821,2]
[346960316,1735429844205,-1139.554738,0.0001821,2]
[346960317,1735429844214,-1139.554738,0.0001821,2]
[346960318,1735429844223,-500.0,0.0001821,2]
[346960319,1735429844232,-151.0,0.0001821,2]
[346960320,1735429844240,-151.0,0.0001821,2]
[346960321,1735429844249,-291.927766,0.0001821,2]
[346960322,1735429844258,-291.927766,0.0001821,2]
[346960323,1735429844267,-151.0,0.0001821,2]
[346960324,1735429844276,-151.0,0.0001821,2]
[346960325,1735429844285,-151.0,0.0001821,2]
[346960326,1735429844294,-151.0,0.0001821,2]
[346960327,1735429844303,-151.0,0.0001821,2]
[346960328,1735429844312,-1650.12,0.00018211,2]
[346960329,1735429844321,-536.27,0.00018211,2]
[346960330,1735429844330,-1475.13,0.00018212,2]
[346960331,1735429844339,-151.0,0.00018253,2]
[346960332,1735429844348,-151.0,0.00018253,2]
[346960333,1735429844357,-412.731789,0.00018253,2]
[346960334,1735429844366,-412.731789,0.00018253,2]
[346960335,1735429844375,-151.0,0.00018253,2]
[346960336,1735429844384,-500.0,0.00018253,2]
[346960337,1735429844392,-500.0,0.00018253,2]
[346960338,1735429844402,-511.91928225,0.00018263,2]
[346960339,1735429844411,-500.0,0.00018263,2]
[346960340,1735429844420,-500.0,0.00018286,2]
[346960341,1735429844430,-500.0,0.000183,2]
[346960342,1735429844440,-500.0,0.000183,2]
[346960343,1735429844449,-861.5745508,0.00018419,2]
[346960344,1735429844459,-151.92,0.00018481,2]
[346960345,1735429844469,-718.97,0.00018481,2]
[346960346,1735429844478,-500.0,0.00018481,2]
[346960347,1735429844488,-500.0,0.00018481,2]
[346960348,1735429844497,-175.2,0.00018481,2]
[346960349,1735429844507,-223.18,0.00018482,2]
[346960350,1735429844516,-500.0,0.00018482,2]
[346960351,1735429844525,-500.0,0.00018482,2]
[346960352,1735429844536,-396.72,0.00018482,2]
[346960353,1735429844545,-500.0,0.00018482,2]
[346960354,1735429844555,-413.93310183,0.00018482,2]
[346960355,1735429844569,-86.06689817,0.00018482,2]
[346960356,1735429844579,-500.0,0.00018482,2]
[346960357,1735429844589,-367.58310183,0.00018482,2]
[346960377,1735429846762,-500.0,0.0001766,2]
[346960378,1735429846772,-160.02,0.00017934,2]
[346960379,1735429846781,-151.0,0.00018208,2]
[346960381,1735429846790,-125.28009,0.00018482,2]
[346960383,1735429846801,-7.13680817,0.00018482,2]
[346960385,1735429846810,-884.32,0.00018482,2]
[346960386,1735429846819,-500.0,0.00018482,2]
[346960388,1735429846828,-500.0,0.00018482,2]
[346960390,1735429846838,-2318.55,0.00018482,2]
[346960392,1735429846847,-325.98,0.00018482,2]
[346960394,1735429846856,-500.0,0.00018482,2]
[346960395,1735429846866,-500.0,0.00018482,2]
[346960397,1735429846875,-9158.89992933,0.00018482,2]
[346960399,1735429846887,-920.75007067,0.00018482,2]
[346960400,1735429846896,-500.0,0.00018482,2]
[346960402,1735429846905,-500.0,0.00018482,2]
[346960404,1735429846914,-500.0,0.00018482,2]
[346960406,1735429846923,-477.52296872,0.00018482,2]
[346960408,1735429846935,-22.47703128,0.00018482,2]
[346960410,1735429846944,-500.0,0.00018482,2]
[346960411,1735429846953,-820.39,0.00018482,2]
[346960413,1735429846963,-500.0,0.00018482,2]
[346960414,1735429846972,-500.0,0.00018482,2]
[346960415,1735429846981,-500.0,0.00018482,2]
[346960416,1735429846990,-500.0,0.00018482,2]
[346960417,1735429846999,-500.0,0.00018482,2]
[346960418,1735429847009,-500.0,0.00018482,2]
[346960419,1735429847019,-500.0,0.00018482,2]
[346960420,1735429847030,-217.1182466,0.00018482,2]
[346960421,1735429847042,-282.8817534,0.00018482,2]
[346960422,1735429847051,-151.0,0.00018482,2]
[346960423,1735429847060,-151.0,0.00018482,2]
[346960424,1735429847070,-232.121085,0.00018482,2]
[346960425,1735429847079,-232.121085,0.00018482,2]
[346960426,1735429847088,-151.0,0.00018482,2]
[346960427,1735429847098,-500.0,0.00018483,2]
[346960428,1735429847107,-395.1,0.00018483,2]
[346960429,1735429847116,-679.76,0.00018483,2]
[346960430,1735429847125,-500.0,0.00018483,2]
[346960431,1735429847134,-151.0,0.00018483,2]
[346960432,1735429847143,-500.0,0.00018483,2]
[346960433,1735429847152,-151.0,0.00018483,2]
[346960434,1735429847161,-694.07,0.00018483,2]
[346960435,1735429847170,-151.0,0.00018484,2]
[346960436,1735429847179,-240.126884,0.00018484,2]
[346960437,1735429847188,-291.927766,0.00018484,2]
[346960438,1735429847197,-291.927766,0.00018484,2]
[346960439,1735429847206,-151.0,0.00018484,2]
[346960440,1735429847215,-151.0,0.00018484,2]
[346960441,1735429847225,-151.0,0.00018484,2]
[346960442,1735429847234,-1650.12,0.00018485,2]
[346960443,1735429847242,-1475.13,0.00018486,2]
[346960444,1735429847251,-165.1157644,0.00018561,2]
[346960445,1735429847260,-606.305,0.000186,2]
[346960446,1735429847269,-718.97,0.00018755,2]
[346960447,1735429847279,-179.63,0.00018755,2]
[346960448,1735429847288,-500.0,0.00018756,2]
[346960449,1735429847297,-500.0,0.00018756,2]
[346960450,1735429847307,-545.65,0.00018756,2]
[346960451,1735429847316,-1274.20618,0.00018756,2]
[346960452,1735429847325,-155.326582,0.00018756,2]
[346960453,1735429847334,-155.326582,0.00018756,2]
[346960454,1735429847343,-500.0,0.00018756,2]
[346960455,1735429847351,-215.41,0.00018756,2]
[346960456,1735429847424,-234.25,0.00018756,2]
[346960457,1735429847442,-151.0,0.00018756,2]
[346960458,1735429847452,-1139.554738,0.00018756,2]
[346960459,1735429847463,-884.32,0.00018756,2]
[346960460,1735429847473,-462.91,0.00018756,2]
[346960461,1735429847483,-1139.554738,0.00018756,2]
[346960462,1735429847492,-500.0,0.00018756,2]
[346960463,1735429847504,-2318.55,0.00018756,2]
[346960464,1735429847515,-500.0,0.00018756,2]
[346960465,1735429847524,-151.0,0.00018756,2]
[346960466,1735429847533,-603.7,0.00018756,2]
[346960467,1735429847542,-151.0,0.00018756,2]
[346960468,1735429847551,-10079.65,0.00018756,2]
[346960469,1735429847560,-500.0,0.00018756,2]
[346960470,1735429847569,-500.0,0.00018756,2]
[346960471,1735429847578,-199.12,0.00018756,2]
[346960472,1735429847587,-433.60613764,0.00018756,2]
[346960473,1735429847596,-500.0,0.00018756,2]
[346960474,1735429847605,-820.39,0.00018756,2]
[346960475,1735429847618,-500.0,0.00018756,2]
[346960476,1735429847627,-500.0,0.00018756,2]
[346960477,1735429847636,-500.0,0.00018756,2]
[346960478,1735429847645,-500.0,0.00018756,2]
[346960479,1735429847654,-608.98,0.00018756,2]
[346960480,1735429847662,-151.99,0.00018756,2]
[346960481,1735429847671,-500.0,0.00018756,2]
[346960482,1735429847680,-500.0,0.00018756,2]
[346960483,1735429847689,-232.121085,0.00018756,2]
[346960484,1735429847698,-232.121085,0.00018756,2]
[346960485,1735429847707,-500.0,0.00018757,2]
[346960486,1735429847717,-500.0,0.00018757,2]
[346960487,1735429847726,-694.07,0.00018757,2]
[346960488,1735429847735,-151.0,0.00018758,2]
[346960489,1735429847744,-412.731789,0.00018758,2]
[346960490,1735429847754,-151.0,0.00018758,2]
[346960491,1735429847764,-151.0,0.00018758,2]
[346960492,1735429847774,-285.374228,0.00018758,2]
[346960493,1735429847783,-1650.12,0.00018759,2]
[346960494,1735429847792,-1475.13,0.0001876,2]
[346960495,1735429847801,-151.0,0.0001876,2]
[346960496,1735429847810,-151.0,0.0001876,2]
[346960497,1735429847821,-151.0,0.000188,2]
[346960498,1735429847830,-151.0,0.000188,2]
[346960499,1735429847840,-151.0,0.000188,2]
[346960500,1735429847851,-500.0,0.00018801,2]
[346960501,1735429847860,-500.0,0.00018801,2]
[346960502,1735429847870,-861.5745508,0.00019004,2]
[346960503,1735429847878,-718.97,0.00019029,2]
[346960504,1735429847887,-500.0,0.0001903,2]
[346960505,1735429847897,-679.76,0.0001903,2]
[346960506,1735429847906,-500.0,0.0001903,2]
[346960507,1735429847916,-624.86,0.0001903,2]
[346960508,1735429847926,-151.0,0.0001903,2]
[346960509,1735429847935,-884.32,0.0001903,2]
[346960510,1735429847945,-500.0,0.0001903,2]
[346960511,1735429847954,-2318.55,0.0001903,2]
[346960512,1735429847963,-500.0,0.0001903,2]
[346960513,1735429847972,-10079.65,0.0001903,2]
[346960514,1735429847982,-500.0,0.0001903,2]
[346960515,1735429847991,-500.0,0.0001903,2]
[346960516,1735429848000,-500.0,0.0001903,2]
[346960517,1735429848010,-820.39,0.0001903,2]
[346960518,1735429848019,-532.04,0.0001903,2]
[346960519,1735429848028,-500.0,0.0001903,2]
[346960520,1735429848037,-500.0,0.0001903,2]
[346960521,1735429848046,-500.0,0.0001903,2]
[346960522,1735429848055,-500.0,0.0001903,2]
[346960523,1735429848064,-500.0,0.0001903,2]
[346960524,1735429848073,-500.0,0.00019031,2]
[346960525,1735429848082,-500.0,0.00019031,2]
[346960526,1735429848091,-151.0,0.00019031,2]
[346960527,1735429848100,-291.927766,0.00019031,2]
[346960528,1735429848110,-291.927766,0.00019031,2]
[346960529,1735429848119,-151.0,0.00019031,2]
[346960530,1735429848128,-151.0,0.00019031,2]
[346960531,1735429848138,-151.0,0.00019031,2]
[346960532,1735429848147,-556.78,0.00019031,2]
[346960533,1735429848157,-694.07,0.00019031,2]
[346960534,1735429848166,-1139.554738,0.00019032,2]
[346960535,1735429848175,-1139.554738,0.00019032,2]
[346960536,1735429848184,-151.0,0.00019032,2]
[346960537,1735429848193,-232.756272,0.00019032,2]
[346960538,1735429848203,-1650.12,0.00019033,2]
[346960539,1735429848212,-1475.13,0.00019034,2]
[346960540,1735429848221,-232.121085,0.00019034,2]
[346960541,1735429848230,-232.121085,0.00019034,2]
[346960542,1735429848240,-718.97,0.00019303,2]
[346960543,1735429848250,-171.86341661,0.00019304,2]
[346960544,1735429848259,-329.80964997,0.00019304,2]
[346960545,1735429848268,-500.0,0.00019304,2]
[346960546,1735429848278,-440.31,0.00019304,2]
[346960547,1735429848287,-1274.20618,0.00019304,2]
[346960548,1735429848296,-155.326582,0.00019304,2]
[346960549,1735429848306,-155.326582,0.00019304,2]
[346960550,1735429848315,-151.0,0.00019304,2]
[346960551,1735429848324,-412.731789,0.00019304,2]
[346960552,1735429848335,-151.0,0.00019304,2]
[346960553,1735429848348,-884.32,0.00019304,2]
[346960554,1735429848362,-400.23,0.00019304,2]
[346960555,1735429848374,-2318.55,0.00019304,2]
[346960556,1735429848387,-500.0,0.00019304,2]
[346960557,1735429848398,-10079.65,0.00019304,2]
[346960558,1735429848409,-201.21,0.00019304,2]
[346960559,1735429848421,-500.0,0.00019304,2]
[346960560,1735429848433,-151.0,0.00019304,2]
[346960561,1735429848446,-500.0,0.00019304,2]
[346960562,1735429848458,-820.39,0.00019304,2]
[346960563,1735429848471,-500.0,0.00019304,2]
[346960564,1735429848482,-500.0,0.00019304,2]
[346960565,1735429848494,-500.0,0.00019304,2]
[346960566,1735429848506,-500.0,0.00019304,2]
[346960567,1735429848519,-500.0,0.00019304,2]
[346960568,1735429848530,-151.0,0.00019304,2]
[346960569,1735429848541,-151.0,0.00019304,2]